bitfinex/quotes_SOLUSD_20250616
["timestamp","ask_amount","ask_price","bid_price","bid_amount"]
[1750043966923,4.72756007,156.38,156.34,18.933972]
[1750043967114,4.72756007,156.37,156.34,18.933972]
[1750043972732,4.72756007,156.38,156.34,18.933972]
[1750043974629,6.0644,156.41,156.34,18.933972]
[1750043974829,4.72756007,156.37,156.34,18.933972]
[1750043975826,4.72756007,156.36,156.34,18.933972]
[1750043977130,4.72756007,156.37,156.34,18.933972]
[1750043977911,4.72756007,156.35,156.34,18.933972]
[1750043979008,4.72756007,156.35,156.33,18.933972]
[1750043979214,4.72756007,156.34,156.33,18.79181043]
[1750043979414,4.72756007,156.34,156.31,18.79181043]
[1750043979614,4.72756007,156.33,156.32,18.64964886]
[1750043979830,4.72756007,156.33,156.3,26.16]
[1750043980312,4.72756007,156.33,156.31,18.933972]
[1750043980629,4.72756007,156.32,156.31,18.79181043]
[1750043980813,4.72756007,156.32,156.31,18.933972]
[1750043981411,4.72756007,156.32,156.27,18.64964886]
[1750043981611,4.72756007,156.32,156.29,0.28432314]
[1750043982337,4.72756007,156.32,156.29,0.14216157]
[1750043982531,4.72756007,156.32,156.29,0.28432314]
[1750043983838,4.72756007,156.32,156.28,26.44432314]
[1750043986338,4.72756007,156.32,156.28,0.28432314]
[1750043986528,4.72756007,156.32,156.28,26.44432314]
[1750043988230,4.72756007,156.33,156.29,18.64964886]
[1750043988567,5.62,156.35,156.32,5.01188321]
[1750043988730,5.62,156.35,156.32,0.28432314]
[1750043992440,4.72756007,156.36,156.32,0.28432314]
[1750043993245,4.72756007,156.35,156.32,0.28432314]
[1750043996631,4.72756007,156.34,156.32,0.28432314]
[1750043996827,4.72756007,156.33,156.28,18.64964886]
[1750043997025,4.72756007,156.33,156.3,0.28432314]
[1750043997245,4.72756007,156.36,156.31,0.28432314]
[1750043999245,4.72756007,156.35,156.31,0.28432314]
[1750044000664,5.62,156.38,156.31,0.28432314]
[1750044000830,4.72756007,156.35,156.31,0.28432314]
[1750044001030,4.72756007,156.36,156.31,0.28432314]
[1750044001231,4.72756007,156.36,156.32,18.64964886]
[1750044001659,4.72756007,156.36,156.32,44.80964886]
[1750044003255,5.62,156.38,156.32,44.80964886]
[1750044003455,4.72756007,156.36,156.32,44.80964886]
[1750044005158,4.72756007,156.36,156.33,0.28432314]
[1750044005348,5.62,156.38,156.37,0.28432314]
[1750044006364,5.62,156.38,156.36,44.80964886]
[1750044006562,10.34756007,156.38,156.36,44.80964886]
[1750044008567,5.62,156.38,156.36,44.80964886]
[1750044008737,4.72756007,156.39,156.36,44.80964886]
[1750044009351,4.72756007,156.38,156.36,44.80964886]
[1750044011137,4.72756007,156.39,156.36,44.80964886]
[1750044012553,4.72756007,156.37,156.36,26.16]
[1750044012939,26.0,156.39,156.34,44.80964886]
[1750044013134,4.72756007,156.37,156.34,44.80964886]
[1750044013847,5.62,156.4,156.36,18.64964886]
[1750044014053,5.62,156.4,156.38,18.933972]
[1750044014641,4.72756007,156.39,156.37,26.16]
[1750044017065,4.72756007,156.38,156.37,26.16]
[1750044017457,4.72756007,156.38,156.36,18.933972]
[1750044019666,4.72756007,156.37,156.35,26.16]
[1750044020046,4.72756007,156.37,156.34,18.933972]
[1750044020251,4.72756007,156.37,156.35,18.933972]
[1750044021170,4.72756007,156.37,156.35,0.28432314]
[1750044021469,4.72756007,156.38,156.35,18.933972]
[1750044022247,4.72756007,156.36,156.26,18.64964886]
[1750044022470,4.72756007,156.31,156.26,4.72756007]
[1750044022680,4.72756007,156.31,156.27,26.16]
[1750044023557,4.72756007,156.31,156.28,18.933972]
[1750044023758,4.72756007,156.31,156.28,18.79181043]
[1750044024464,4.72756007,156.31,156.29,0.14216157]
[1750044024776,4.72756007,156.3,156.29,0.14216157]
[1750044024984,4.72756007,156.3,156.22,16.21336277]
[1750044025159,4.72756007,156.24,156.2,6.6618]
[1750044025366,4.72756007,156.24,156.22,18.64964886]
[1750044025870,4.72756007,156.24,156.23,0.28432314]
[1750044026066,4.72756007,156.24,156.22,18.64964886]
[1750044027174,4.72756007,156.24,156.17,6.40325646]
[1750044027175,4.72756007,156.23,156.14,4.88038077]
[1750044027347,27.6424,156.27,156.11,6.6618]
[1750044027348,4.72756007,156.17,156.11,6.6618]
[1750044027550,4.72756007,156.15,156.11,6.6618]
[1750044028353,4.72756007,156.16,156.12,18.933972]
[1750044028558,4.72756007,156.16,156.12,18.64964886]
[1750044028876,4.72756007,156.15,156.12,18.64964886]
[1750044029774,4.72756007,156.15,156.13,0.14216157]
[1750044029972,4.72756007,156.14,156.13,0.14216157]
[1750044030174,4.72756007,156.14,156.11,18.64964886]
[1750044030372,4.72756007,156.13,156.11,18.64964886]
[1750044030551,4.72756007,156.13,156.1,18.64964886]
[1750044030880,4.72756007,156.13,156.11,0.28432314]
[1750044031082,4.72756007,156.13,156.1,18.64964886]
[1750044031574,4.72756007,156.13,156.11,0.28432314]
[1750044033280,26.0,156.19,156.11,0.28432314]
[1750044033488,4.72756007,156.14,156.11,0.28432314]
[1750044034073,26.0,156.17,156.11,0.28432314]
[1750044034074,4.72756007,156.13,156.11,0.28432314]
[1750044034382,4.72756007,156.12,156.08,18.64964886]
[1750044034561,4.72756007,156.11,156.09,0.14216157]
[1750044034884,4.72756007,156.11,156.08,18.64964886]
[1750044035184,4.72756007,156.11,156.07,18.64964886]
[1750044035585,4.72756007,156.11,156.08,0.28432314]
[1750044036674,4.72756007,156.09,156.06,18.64964886]
[1750044036878,4.72756007,156.08,156.06,18.64964886]
[1750044037189,4.72756007,156.07,156.05,18.64964886]
[1750044037689,4.72756007,156.06,156.03,18.64964886]
[1750044037876,4.72756007,156.07,156.04,0.28432314]
[1750044038255,4.72756007,156.07,156.03,18.64964886]
[1750044038462,4.72756007,156.06,156.04,0.28432314]
[1750044038662,4.72756007,156.07,156.04,0.14216157]
[1750044039403,4.72756007,156.06,156.01,18.64964886]
[1750044039706,4.72756007,156.06,156.02,0.28432314]
[1750044040068,4.72756007,156.05,156.02,0.28432314]
[1750044040500,4.72756007,156.06,156.02,0.28432314]
[1750044042297,4.72756007,156.05,156.02,0.28432314]
[1750044043568,26.0,156.09,156.0,18.64964886]
[1750044043569,7.9821,156.08,156.0,18.64964886]
[1750044043767,4.72756007,156.04,156.0,18.64964886]
[1750044043999,4.72756007,156.04,156.01,0.14216157]
[1750044044204,4.72756007,156.04,156.01,0.28432314]
[1750044044411,4.72756007,156.03,156.01,0.28432314]
[1750044044705,4.72756007,156.02,156.01,0.14216157]
[1750044045269,4.72756007,156.02,155.97,18.64964886]
[1750044045497,4.72756007,156.01,155.97,18.64964886]
[1750044045668,4.72756007,156.01,155.98,0.14216157]
[1750044045996,4.72756007,156.01,155.98,0.28432314]
[1750044046296,4.72756007,156.01,155.98,0.14216157]
[1750044046587,4.72756007,156.01,155.98,0.28432314]
[1750044046765,5.62,156.04,155.98,0.28432314]
[1750044046766,4.72756007,156.02,155.98,0.28432314]
[1750044046966,4.72756007,156.03,155.98,0.28432314]
[1750044047380,4.72756007,156.03,156.0,0.28432314]
[1750044048180,5.62,156.04,156.01,4.72756007]
[1750044048372,4.72756007,156.08,156.02,23.66153207]
[1750044048695,4.72756007,156.07,156.02,0.28432314]
[1750044049072,4.72756007,156.08,156.02,5.01188321]
[1750044049490,4.72756007,156.08,156.02,11.4211793]
[1750044050506,4.72756007,156.07,156.02,5.01188321]
[1750044050702,4.72756007,156.07,156.02,0.28432314]
[1750044051001,4.72756007,156.06,156.02,0.28432314]
[1750044051376,5.62,156.09,156.02,0.28432314]
[1750044051377,5.62,156.09,156.02,5.01188321]
[1750044051578,4.72756007,156.07,156.02,5.01188321]
[1750044051777,4.72756007,156.07,156.02,0.28432314]
[1750044054178,10.37318299,156.08,156.04,18.933972]
[1750044054379,15.10074306,156.08,156.04,18.933972]
[1750044054908,15.10074306,156.08,156.04,0.28432314]
[1750044055103,4.72756007,156.06,156.04,0.28432314]
[1750044056477,14.82731882,156.07,156.03,0.28432314]
[1750044057589,10.09975875,156.07,156.03,0.28432314]
[1750044057775,10.09975875,156.07,156.03,5.01188321]
[1750044057976,14.82731882,156.07,156.03,0.28432314]
[1750044059207,4.72756007,156.06,156.03,0.28432314]
[1750044059388,14.82731882,156.07,156.03,0.28432314]
[1750044063207,10.09975875,156.07,156.04,4.72756007]
[1750044063411,10.09975875,156.07,156.06,5.01188321]
[1750044064212,10.09975875,156.07,156.06,18.933972]
[1750044064513,14.82731882,156.07,156.01,56.92756007]
[1750044064691,4.72756007,156.06,156.02,18.79181043]
[1750044065292,4.72756007,156.06,156.03,0.14216157]
[1750044065805,4.78192907,156.05,156.03,0.14216157]
[1750044066008,4.72756007,156.06,156.03,0.14216157]
[1750044066406,9.50961307,156.05,156.03,0.14216157]
[1750044066600,4.78204712,156.04,156.03,0.14216157]
[1750044067117,4.78589833,156.04,156.03,0.14216157]
[1750044067283,4.78605994,156.04,156.03,0.14216157]
[1750044067479,4.78607968,156.04,156.03,0.14216157]
[1750044067682,4.78674899,156.04,156.03,0.14216157]
[1750044067883,4.78683156,156.04,156.03,0.14216157]
[1750044068199,4.78689786,156.04,156.03,0.14216157]
[1750044068407,4.78680529,156.04,156.03,0.14216157]
[1750044068603,4.78703075,156.04,156.03,0.14216157]
[1750044068809,4.72756007,156.06,156.03,0.14216157]
[1750044069005,4.78702513,156.05,156.03,0.14216157]
[1750044069210,4.78785173,156.04,156.03,0.14216157]
[1750044069410,4.79004464,156.04,156.03,0.14216157]
[1750044069598,4.79012332,156.04,156.03,0.14216157]
[1750044069798,4.79039276,156.04,156.03,0.14216157]
[1750044070102,4.79039276,156.04,156.0,18.64964886]
[1750044070103,4.79189588,156.04,156.0,18.64964886]
[1750044070423,4.79187227,156.03,156.0,18.64964886]
[1750044070721,4.79188591,156.02,156.01,0.28432314]
[1750044070926,4.72756007,156.05,156.01,0.28432314]
[1750044071124,9.51971039,156.04,156.01,0.28432314]
[1750044071422,4.72756007,156.05,156.01,0.28432314]
[1750044072140,4.79232352,156.04,156.01,0.28432314]
[1750044072299,4.72756007,156.05,156.01,0.28432314]
[1750044072811,9.51970271,156.04,156.01,0.28432314]
[1750044073011,4.79244415,156.03,156.01,0.28432314]
[1750044073316,4.79165574,156.02,156.01,0.28432314]
[1750044073496,4.72756007,156.04,156.01,0.28432314]
[1750044073701,4.79138648,156.03,156.01,0.28432314]
[1750044073922,4.79108136,156.02,156.01,0.28432314]
[1750044074106,4.79132839,156.02,156.01,0.28432314]
[1750044074299,4.79170798,156.02,156.01,0.28432314]
[1750044074726,4.79166012,156.02,155.99,18.933972]
[1750044074903,4.72756007,156.03,155.99,18.933972]
[1750044075316,4.78561607,156.02,155.99,18.933972]
[1750044075630,4.78565025,156.01,155.99,18.933972]
[1750044075929,4.78566247,156.0,155.99,18.933972]
[1750044076130,4.72756007,156.03,155.99,18.933972]
[1750044076325,4.78566307,156.02,155.99,18.933972]
[1750044076528,4.78530984,156.01,155.99,18.933972]
[1750044076833,4.78515449,156.0,155.99,18.933972]
[1750044077022,4.78515214,156.0,155.99,18.933972]
[1750044077217,4.78528556,156.0,155.99,18.933972]
[1750044077433,4.72756007,156.03,155.99,18.933972]
[1750044077639,4.78564835,156.02,155.99,18.933972]
[1750044077834,4.78616241,156.01,155.98,23.66153207]
[1750044078025,4.72756007,156.03,155.98,23.66153207]
[1750044078225,4.7859551,156.02,155.98,23.66153207]
[1750044078427,4.7859551,156.01,155.98,23.66153207]
[1750044078608,4.72756007,156.03,155.98,23.66153207]
[1750044078815,4.78638674,156.02,155.98,23.66153207]
[1750044079024,4.78638324,156.01,155.98,23.66153207]
[1750044079223,4.78638324,156.0,155.98,23.66153207]
[1750044079424,4.72756007,156.03,155.98,23.66153207]
[1750044079672,4.78635145,156.02,155.98,23.66153207]
[1750044079814,4.7863491,156.01,155.98,23.66153207]
[1750044080141,4.78634675,156.0,155.98,23.66153207]
[1750044080323,4.72756007,156.03,155.98,49.86153207]
[1750044081128,4.72756007,156.05,156.01,18.64964886]
[1750044081438,4.72756007,156.05,156.02,0.28432314]
[1750044084028,4.79583995,156.04,156.02,0.28432314]
[1750044084217,4.72756007,156.05,156.02,0.28432314]
[1750044085242,4.72756007,156.06,156.02,0.28432314]
[1750044085639,4.72756007,156.04,156.0,0.28432314]
[1750044086046,10.09975875,156.07,156.02,0.28432314]
[1750044086047,4.72756007,156.05,156.02,0.28432314]
[1750044088342,4.72756007,156.04,156.0,0.28432314]
[1750044089953,4.72756007,156.05,156.02,0.28432314]
[1750044090327,4.72756007,156.06,156.02,0.28432314]
[1750044090634,14.82731882,156.07,156.02,0.28432314]
[1750044090832,4.72756007,156.06,156.02,0.28432314]
[1750044092125,4.72756007,156.05,156.02,0.28432314]
[1750044092420,4.72756007,156.04,156.02,0.14216157]
[1750044092639,4.72756007,156.04,156.02,0.28432314]
[1750044092923,4.72756007,156.03,155.92,10.96752292]
[1750044093124,4.72756007,155.99,155.93,30.92756007]
[1750044093352,4.72756007,155.99,155.94,18.64964886]
[1750044093561,4.72756007,155.99,155.95,0.28432314]
[1750044093868,4.72756007,155.99,155.94,18.64964886]
[1750044094326,4.72756007,155.99,155.95,0.28432314]
[1750044094530,4.72756007,155.98,155.95,0.28432314]
[1750044094918,4.72756007,155.99,155.95,0.14216157]
[1750044095352,4.72756007,155.98,155.95,0.14216157]
[1750044095648,19.19967932,156.04,155.95,0.14216157]
[1750044095649,4.72756007,155.99,155.95,0.28432314]
[1750044097556,4.72756007,155.98,155.95,0.28432314]
[1750044097729,4.72756007,155.96,155.9,18.64964886]
[1750044097917,4.72756007,155.95,155.9,49.57720893]
[1750044098121,4.72756007,155.97,155.92,5.01188321]
[1750044098363,5.62,156.0,155.97,0.28432314]
[1750044098828,5.62,156.0,155.99,0.28432314]
[1750044100727,5.62,156.0,155.99,23.66153207]
[1750044100944,9.68556501,156.04,156.01,0.28432314]
[1750044101151,9.68556501,156.04,156.01,5.01188321]
[1750044101531,9.68556501,156.04,156.01,18.933972]
[1750044102230,9.68556501,156.04,156.01,5.01188321]
[1750044102631,9.68556501,156.04,156.02,4.72756007]
[1750044102834,9.68556501,156.04,156.03,23.37720893]
[1750044103835,9.68556501,156.04,156.03,18.64964886]
[1750044104835,9.68556501,156.04,156.03,23.66153207]
[1750044105035,5.62,156.07,156.04,18.933972]
[1750044105350,5.62,156.07,156.04,23.66153207]
[1750044105527,5.62,156.07,156.06,18.933972]
[1750044106849,5.62,156.07,156.06,23.66153207]
[1750044107040,4.72756007,156.11,156.06,23.66153207]
[1750044108966,4.72756007,156.12,156.08,18.933972]
[1750044109263,4.72756007,156.11,156.08,45.133972]
[1750044109648,4.72756007,156.1,156.08,45.133972]
[1750044110860,36.41019756,156.14,156.08,45.133972]
[1750044111066,4.72756007,156.11,156.08,45.133972]
[1750044111262,4.72756007,156.1,156.08,45.133972]
[1750044111566,4.72756007,156.11,156.08,45.133972]
[1750044114370,4.72756007,156.11,156.08,45.11276329]
[1750044114879,36.41019756,156.14,156.08,45.11276329]
[1750044114880,31.62,156.14,156.08,45.11276329]
[1750044115055,31.62,156.14,156.08,49.84032336]
[1750044115259,4.72756007,156.13,156.08,49.84032336]
[1750044115464,4.72756007,156.11,156.08,45.11276329]
[1750044119049,31.62,156.14,156.08,45.11276329]
[1750044119254,4.72756007,156.12,156.08,45.11276329]
[1750044119764,10.34756007,156.14,156.09,4.72756007]
[1750044120275,5.62,156.14,156.1,49.84153207]
[1750044120648,5.62,156.14,156.12,5.01188321]
[1750044121067,5.62,156.14,156.13,18.933972]
[1750044121769,5.62,156.14,156.13,23.66153207]
[1750044125190,5.62,156.14,156.13,30.06645104]
[1750044125575,8.67233773,156.17,156.13,30.06645104]
[1750044125775,8.67233773,156.17,156.15,18.933972]
[1750044127889,8.67233773,156.17,156.15,23.66153207]
[1750044128684,8.67233773,156.17,156.15,18.933972]
[1750044128971,8.67233773,156.17,156.15,23.66153207]
[1750044129277,8.67233773,156.17,156.16,49.84153207]
[1750044135967,8.67233773,156.17,156.16,56.24522059]
[1750044136385,5.6,156.21,156.17,18.933972]
[1750044136584,5.6,156.21,156.19,18.933972]
[1750044138701,5.6,156.21,156.2,45.093972]
[1750044143070,5.6,156.21,156.16,89.2]
[1750044143289,4.72756007,156.17,156.14,18.64964886]
[1750044143587,4.72756007,156.17,156.14,44.80964886]
[1750044143781,4.72756007,156.18,156.15,0.28432314]
[1750044144402,4.72756007,156.18,156.15,0.14216157]
[1750044144605,4.72756007,156.18,156.15,0.28432314]
[1750044145105,4.72756007,156.18,156.15,18.933972]
[1750044145298,4.72756007,156.17,156.15,18.933972]
[1750044147271,11.6148,156.21,156.15,18.933972]
[1750044147506,4.72756007,156.18,156.15,18.933972]
[1750044147892,4.72756007,156.16,156.06,40.15951409]
[1750044148092,4.72756007,156.13,156.07,30.88756007]
[1750044148391,4.72756007,156.13,156.08,18.64964886]
[1750044148601,4.72756007,156.13,156.09,0.28432314]
[1750044149014,26.0,156.17,156.09,0.28432314]
[1750044149195,4.72756007,156.13,156.08,23.37720893]
[1750044149381,4.72756007,156.13,156.1,18.64964886]
[1750044150407,5.6,156.16,156.1,18.64964886]
[1750044150590,4.72756007,156.13,156.1,18.64964886]
[1750044150790,4.72756007,156.12,156.1,18.64964886]
[1750044151400,4.72756007,156.12,156.09,0.28432314]
[1750044155826,4.72756007,156.11,156.08,0.28432314]
[1750044156523,4.72756007,156.1,156.08,0.28432314]
[1750044165522,4.72756007,156.09,156.07,18.64964886]
[1750044166027,4.72756007,156.09,156.06,32.20471249]
[1750044166232,4.72756007,156.07,156.05,18.79181043]
[1750044166415,4.72756007,156.07,156.04,0.14216157]
[1750044166822,4.72756007,156.07,156.03,44.95181043]
[1750044167026,4.72756007,156.07,156.03,18.79181043]
[1750044167326,4.72756007,156.08,156.04,0.14216157]
[1750044171341,4.72756007,156.07,156.04,0.14216157]
[1750044173217,27.5375,156.12,156.04,0.14216157]
[1750044173419,4.72756007,156.08,156.04,0.14216157]
[1750044180649,4.72756007,156.07,156.04,0.14216157]
[1750044182352,4.72756007,156.08,156.04,0.14216157]
[1750044184236,4.72756007,156.07,156.04,0.14216157]
[1750044184847,10.32756007,156.09,156.04,0.14216157]
[1750044185053,10.32756007,156.09,156.05,18.79181043]
[1750044185555,10.32756007,156.09,156.05,0.14216157]
[1750044187362,10.32756007,156.09,156.04,0.28432314]
[1750044188659,4.72756007,156.08,156.04,0.28432314]
[1750044193258,5.6,156.09,156.04,0.28432314]
[1750044193445,4.72756007,156.08,156.04,0.28432314]
[1750044195747,4.72756007,156.07,156.04,0.28432314]
[1750044199364,4.72756007,156.08,156.04,0.28432314]
[1750044200976,3.03977252,156.08,156.04,0.28432314]
[1750044201848,5.6,156.09,156.04,0.28432314]
[1750044202055,3.03977252,156.08,156.04,0.28432314]
[1750044202771,3.03977252,156.07,156.04,0.28432314]
[1750044203391,5.6,156.09,156.04,0.28432314]
[1750044203562,3.03977252,156.08,156.04,0.28432314]
[1750044204482,3.03977252,156.07,156.04,0.28432314]
[1750044204679,3.03977252,156.07,156.03,18.64964886]
[1750044204878,3.03977252,156.06,156.03,18.64964886]
[1750044205175,3.03977252,156.06,156.02,0.28432314]
[1750044205557,3.03977252,156.05,156.02,0.28432314]
[1750044205775,3.03977252,156.03,156.0,18.64964886]
[1750044205952,3.03977252,156.02,156.0,18.64964886]
[1750044207879,3.03977252,156.03,156.0,18.64964886]
[1750044208886,4.75271667,156.03,156.0,18.64964886]
[1750044209386,26.0,156.05,156.01,0.28432314]
[1750044209569,4.78089902,156.08,156.0,5.03703981]
[1750044209880,10.35271667,156.09,156.05,18.64964886]
[1750044211185,10.35271667,156.09,156.06,0.28432314]
[1750044211690,5.6,156.09,156.06,0.28432314]
[1750044213178,10.35271667,156.09,156.06,0.28432314]
[1750044214089,5.6,156.09,156.06,0.28432314]
[1750044214287,5.6,156.09,156.07,18.64964886]
[1750044214490,5.6,156.09,156.08,0.28432314]
[1750044217890,5.6,156.09,156.08,5.03703981]
[1750044218396,4.75271667,156.15,156.08,11.58617216]
[1750044218570,4.75271667,156.15,156.11,18.933972]
[1750044219570,10.35271667,156.16,156.11,18.933972]
[1750044219897,15.15129384,156.16,156.11,18.933972]
[1750044220598,10.35271667,156.16,156.11,18.933972]
[1750044220793,10.35271667,156.16,156.11,5.03703981]
[1750044221397,5.6,156.16,156.12,4.75271667]
[1750044221702,5.6,156.16,156.15,18.933972]
[1750044224979,5.6,156.16,156.15,5.03703981]
[1750044226205,1.6226,156.23,156.15,11.58325479]
[1750044226390,4.75271667,156.21,156.15,0.14216157]
[1750044226590,7.2226,156.23,156.15,18.933972]
[1750044226591,4.75271667,156.18,156.15,18.933972]
[1750044227099,4.75271667,156.19,156.15,18.933972]
[1750044229907,4.75271667,156.17,156.12,23.40236553]
[1750044230083,4.75271667,156.17,156.13,0.28432314]
[1750044230405,4.75271667,156.17,156.13,0.14216157]
[1750044230603,4.75271667,156.17,156.13,4.89487824]
[1750044230807,4.75271667,156.19,156.15,0.28432314]
[1750044232494,4.75271667,156.18,156.15,0.28432314]
[1750044236510,4.75271667,156.19,156.15,0.28432314]
[1750044237505,4.75271667,156.18,156.15,0.28432314]
[1750044242208,4.75271667,156.19,156.15,0.28432314]
[1750044242508,10.35271667,156.21,156.17,0.28432314]
[1750044243190,5.6,156.21,156.17,0.28432314]
[1750044243391,10.35271667,156.21,156.17,0.28432314]
[1750044244910,5.6,156.21,156.15,18.64964886]
[1750044245088,4.75271667,156.17,156.15,18.64964886]
[1750044245283,4.75271667,156.18,156.14,0.28432314]
[1750044245488,4.75271667,156.18,156.14,0.14216157]
[1750044245698,4.75271667,156.18,156.14,0.28432314]
[1750044247613,4.75271667,156.19,156.15,18.64964886]
[1750044248187,4.75271667,156.18,156.15,18.64964886]
[1750044248395,4.75271667,156.18,156.14,0.28432314]
[1750044253089,31.6,156.21,156.14,0.28432314]
[1750044253313,4.75271667,156.19,156.15,18.64964886]
[1750044254903,4.75271667,156.19,156.13,18.933972]
[1750044255120,4.75271667,156.19,156.15,18.933972]
[1750044256812,31.6,156.21,156.15,18.933972]
[1750044256813,4.75271667,156.18,156.15,18.933972]
[1750044257015,31.6,156.21,156.15,18.933972]
[1750044257215,4.75271667,156.18,156.15,18.933972]
[1750044257424,4.75271667,156.18,156.15,0.28432314]
[1750044260732,31.6,156.21,156.15,5.03703981]
[1750044260901,10.35271667,156.21,156.17,18.933972]
[1750044261906,5.6,156.21,156.17,5.03703981]
[1750044262914,10.35271667,156.21,156.17,18.933972]
[1750044265332,10.35271667,156.21,156.18,0.28432314]
[1750044266320,5.6,156.21,156.18,5.03703981]
[1750044267424,5.6,156.21,156.2,18.933972]
[1750044267945,5.6,156.21,156.2,0.28432314]
[1750044268132,5.6,156.21,156.2,5.03703981]
[1750044272161,5.6,156.21,156.16,27.7446]
[1750044272329,5.6,156.21,156.17,23.40236553]
[1750044272529,5.6,156.21,156.18,0.14216157]
[1750044272854,5.6,156.21,156.19,0.14216157]
[1750044273851,5.6,156.21,156.18,0.28432314]
[1750044275353,4.75271667,156.2,156.18,0.14216157]
[1750044275551,4.75271667,156.19,156.13,44.76964886]
[1750044275846,4.75271667,156.17,156.14,0.28432314]
[1750044276541,4.75271667,156.17,156.14,0.14216157]
[1750044276942,4.75271667,156.17,156.14,0.28432314]
[1750044277139,4.75271667,156.16,156.12,18.79181043]
[1750044277337,4.75271667,156.15,156.12,18.64964886]
[1750044277744,4.75271667,156.16,156.12,18.64964886]
[1750044277942,4.75271667,156.16,156.13,0.28432314]
[1750044278141,4.75271667,156.16,156.12,18.64964886]
[1750044278450,4.75271667,156.16,156.13,0.28432314]
[1750044278759,4.75271667,156.17,156.13,0.28432314]
[1750044284050,4.75271667,156.17,156.13,6.6891069]
[1750044284334,4.75271667,156.18,156.13,11.44182357]
[1750044286040,4.75271667,156.18,156.14,18.64964886]
[1750044292339,5.6,156.21,156.14,18.64964886]
[1750044292340,4.75271667,156.19,156.14,29.80687409]
[1750044292550,5.6,156.21,156.17,18.64964886]
[1750044292551,4.75271667,156.2,156.17,18.64964886]
[1750044296041,10.35271667,156.21,156.16,29.80604167]
[1750044296351,10.35271667,156.21,156.17,0.28432314]
[1750044296556,5.6,156.21,156.17,0.28432314]
[1750044296753,4.75271667,156.2,156.17,0.28432314]
[1750044300372,5.6,156.21,156.17,0.28432314]
[1750044300575,28.96981521,156.28,156.2,4.75271667]
[1750044300752,4.75271667,156.26,156.22,0.28432314]
[1750044301361,4.75271667,156.25,156.22,0.28432314]
[1750044303468,36.36982513,156.27,156.22,0.28432314]
[1750044303646,4.75271667,156.25,156.22,0.28432314]
[1750044303853,4.75271667,156.26,156.22,0.28432314]
[1750044304051,10.36982513,156.27,156.22,0.28432314]
[1750044304363,15.16553002,156.28,156.25,18.64964886]
[1750044304672,19.91824669,156.28,156.25,18.64964886]
[1750044305062,15.16553002,156.28,156.25,18.64964886]
[1750044305449,15.16553002,156.28,156.26,0.28432314]
[1750044305742,15.16553002,156.28,156.26,18.933972]
[1750044305969,15.16553002,156.28,156.26,0.28432314]
[1750044306270,15.16553002,156.28,156.26,5.03703981]
[1750044306648,5.58,156.3,156.26,5.03703981]
[1750044306976,10.33271667,156.3,156.26,5.03703981]
[1750044308771,5.58,156.3,156.26,5.03703981]
[1750044310474,5.58,156.3,156.26,11.43650429]
[1750044310679,6.3076,156.36,156.3,18.64964886]
[1750044310858,5.58,156.36,156.34,4.75271667]
[1750044311270,5.58,156.36,156.31,0.28432314]
[1750044311271,5.58,156.36,156.35,5.03703981]
[1750044312156,5.58,156.36,156.33,0.28432314]
[1750044312469,5.58,156.36,156.35,4.75271667]
[1750044313573,5.58,156.36,156.33,0.28432314]
[1750044313760,5.58,156.36,156.34,4.75271667]
[1750044315164,5.58,156.36,156.35,4.75271667]
[1750044315875,5.58,156.36,156.34,4.75271667]
[1750044316383,5.58,156.36,156.33,0.28432314]
[1750044316686,5.58,156.36,156.34,4.75271667]
[1750044316872,5.58,156.36,156.35,5.03703981]
[1750044320483,5.58,156.36,156.34,18.64964886]
[1750044320484,5.58,156.36,156.28,1.558]
[1750044320687,4.75271667,156.32,156.27,4.75271667]
[1750044321173,4.75271667,156.32,156.28,18.933972]
[1750044321376,4.75271667,156.32,156.28,18.64964886]
[1750044321571,4.75271667,156.32,156.29,0.28432314]
[1750044322196,4.75271667,156.32,156.28,18.64964886]
[1750044322361,4.75271667,156.32,156.29,0.28432314]
[1750044322685,4.75271667,156.32,156.28,18.64964886]
[1750044322874,4.75271667,156.32,156.29,0.28432314]
[1750044325566,1.6641,156.34,156.29,0.28432314]
[1750044325762,4.75271667,156.32,156.27,0.28432314]
[1750044325982,4.75271667,156.32,156.27,5.03703981]
[1750044326895,4.75271667,156.33,156.29,0.28432314]
[1750044327683,1.6641,156.34,156.29,0.28432314]
[1750044327684,4.75271667,156.32,156.29,0.28432314]
[1750044329080,4.75271667,156.32,156.27,5.03703981]
[1750044329482,4.75271667,156.33,156.27,5.03703981]
[1750044329683,4.75271667,156.33,156.29,0.28432314]
[1750044332483,36.33271667,156.36,156.31,4.75271667]
[1750044332675,36.33271667,156.36,156.31,18.64964886]
[1750044332997,10.33271667,156.36,156.32,0.28432314]
[1750044333597,4.75271667,156.35,156.32,0.28432314]